bitfinex-derivatives/quotes_SOLF0:USTF0_20260202
["timestamp","ask_amount","ask_price","bid_price","bid_amount"]
[1770049574546,140.73151914,104.96,104.88,41.88976831]
[1770049574937,133.4839,104.95,104.88,41.88976831]
[1770049575144,133.4962,104.94,104.88,41.88976831]
[1770049576436,8.5835,104.92,104.88,41.88976831]
[1770049577243,8.5826,104.94,104.88,41.88976831]
[1770049578849,8.5828,104.93,104.88,41.88976831]
[1770049580940,140.73151914,104.96,104.88,41.88976831]
[1770049582446,8.5828,104.93,104.88,41.88976831]
[1770049589348,8.5837,104.92,104.88,41.88976831]
[1770049589547,133.4849,104.95,104.86,422.17311301]
[1770049589548,133.5103,104.93,104.86,422.17311301]
[1770049589957,8.5844,104.91,104.87,41.87311301]
[1770049590452,140.7449233,104.96,104.87,41.87311301]
[1770049590651,7.2712233,104.96,104.87,41.87311301]
[1770049590855,133.4599,104.97,104.87,41.87311301]
[1770049591154,7.2712233,104.98,104.89,41.87311301]
[1770049592554,8.5795,104.97,104.91,41.8267969]
[1770049594249,8.5807,104.96,104.91,41.8267969]
[1770049594453,133.428,105.0,104.91,50.4105969]
[1770049594656,140.6814233,105.01,104.91,41.8267969]
[1770049594957,133.4339,104.99,104.91,41.8267969]
[1770049595454,8.5785,104.99,104.91,50.4110969]
[1770049595645,8.5785,104.99,104.93,41.83309771]
[1770049595847,133.422,105.0,104.93,41.83309771]
[1770049596152,140.7046233,104.99,104.91,41.83309771]
[1770049596655,133.4483,104.98,104.91,41.83309771]
[1770049597351,8.5803,104.96,104.91,41.83309771]
[1770049598756,8.5793,104.98,104.91,41.83309771]
[1770049598951,140.7046233,104.99,104.91,41.83309771]
[1770049599655,8.5797,104.97,104.91,41.83309771]
[1770049601655,8.5805,104.96,104.91,41.83309771]
[1770049602750,8.5803,104.97,104.91,41.83309771]
[1770049603266,8.5805,104.96,104.91,41.83309771]
[1770049603958,15.8508233,104.97,104.91,41.83309771]
[1770049604157,8.5796,104.97,104.91,41.83309771]
[1770049604354,7.2712233,104.99,104.91,41.83309771]
[1770049604657,463.7702,105.01,104.93,41.79142085]
[1770049604658,337.6312233,105.01,104.93,41.79142085]
[1770049604960,337.6312233,105.01,104.93,50.37482085]
[1770049605459,8.5786,104.99,104.93,41.79142085]
[1770049607462,8.579,104.98,104.93,41.79142085]
[1770049607664,7.2712233,104.99,104.93,41.79142085]
[1770049607856,8.5795,104.97,104.93,41.79142085]
[1770049608363,7.2712233,104.99,104.93,41.79142085]
[1770049608563,140.7182233,104.99,104.92,380.08]
[1770049608760,140.7430233,104.97,104.91,41.78409698]
[1770049609362,133.4832,104.96,104.89,41.78205887]
[1770049610161,8.582,104.94,104.89,41.78205887]
[1770049610460,7.2712233,104.95,104.89,41.78205887]
[1770049610771,7.2712233,104.93,104.87,41.78211909]
[1770049610964,140.7971233,104.93,104.87,41.78211909]
[1770049611265,8.5853,104.91,104.87,41.78211909]
[1770049611463,140.7971233,104.93,104.87,41.78211909]
[1770049611663,133.5489,104.9,104.84,41.78796434]
[1770049611862,8.5876,104.87,104.82,41.78796434]
[1770049612370,7.2712233,104.89,104.82,41.78796434]
[1770049612665,8.5878,104.88,104.82,41.78796434]
[1770049613162,140.8509233,104.89,104.82,41.78796434]
[1770049613465,7.2712233,104.89,104.82,41.78796434]
[1770049613662,133.5489,104.9,104.82,41.78796434]
[1770049614063,8.5859,104.9,104.82,41.78796434]
[1770049614268,140.7876233,104.93,104.84,41.75955763]
[1770049615368,133.5352,104.92,104.84,41.75955763]
[1770049615771,8.5868,104.88,104.84,41.75955763]
[1770049615968,133.5475,104.9,104.84,41.75955763]
[1770049616369,133.6049,104.87,104.79,41.75593802]
[1770049616570,140.8761233,104.87,104.79,41.75593802]
[1770049616773,8.5887,104.87,104.79,41.75593802]
[1770049617469,8.5894,104.86,104.79,41.75593802]
[1770049618861,15.8587233,104.89,104.79,41.75593802]
[1770049619268,15.8567233,104.91,104.8,41.709504]
[1770049619468,15.8567233,104.91,104.82,41.70727718]
[1770049619776,7.2712233,104.91,104.82,41.70727718]
[1770049620875,8.5861,104.9,104.82,41.70727718]
[1770049622277,7.2712233,104.91,104.82,41.70727718]
[1770049623077,15.8566233,104.91,104.82,50.29977718]
[1770049623271,7.2712233,104.91,104.82,41.70727718]
[1770049624176,8.5857,104.9,104.82,50.29927718]
[1770049624779,8.5872,104.89,104.82,41.70727718]
[1770049626277,15.8584233,104.89,104.82,41.70727718]
[1770049626472,7.2712233,104.89,104.82,50.29957718]
[1770049628274,15.8581233,104.89,104.83,8.5912]
[1770049628479,15.8581233,104.89,104.83,50.31403486]
[1770049629272,15.8581233,104.89,104.83,41.72283486]
[1770049630183,8.5852,104.9,104.83,41.72283486]
[1770049630382,7.2712233,104.91,104.83,41.72283486]
[1770049630778,7.2712233,104.93,104.86,41.72049185]
[1770049630979,133.5353,104.92,104.83,41.72049185]
[1770049631282,7.2712233,104.89,104.83,41.72049185]
[1770049632085,8.5877,104.87,104.83,41.72049185]
[1770049632280,7.2712233,104.89,104.81,41.73455463]
[1770049632780,7.2712233,104.87,104.81,41.73455463]
[1770049632987,7.2712233,104.89,104.81,41.73455463]
[1770049633484,8.5885,104.87,104.81,41.73455463]
[1770049633884,151.2420233,104.89,104.81,41.73455463]
[1770049634081,17.6812233,104.89,104.81,41.73455463]
[1770049635284,8.5883,104.88,104.81,41.73455463]
[1770049635478,8.5883,104.88,104.82,41.67600635]
[1770049635685,18.9961,104.89,104.82,41.67600635]
[1770049636385,18.9961,104.89,104.82,50.26820635]
[1770049638089,18.9961,104.89,104.82,41.67600635]
[1770049638684,8.5879,104.88,104.82,41.67600635]
[1770049639287,8.5882,104.87,104.82,41.67600635]
[1770049640389,8.5877,104.88,104.82,41.67600635]
[1770049640790,10.41,104.89,104.82,41.67600635]
[1770049642188,10.41,104.89,104.83,41.79486111]
[1770049642384,10.41,104.89,104.84,422.11486111]
[1770049643287,18.9963,104.89,104.84,422.11486111]
[1770049643487,10.41,104.89,104.84,422.11486111]
[1770049648388,10.41,104.89,104.82,8.5919]
[1770049648389,10.41,104.89,104.82,41.69634205]
[1770049648594,7.2712233,104.88,104.82,41.69634205]
[1770049649294,15.8595233,104.88,104.82,41.69634205]
[1770049650392,15.86745221,104.88,104.82,41.69634205]
[1770049650588,18.997,104.89,104.82,50.28864205]
[1770049651395,10.41,104.89,104.84,41.74750214]
[1770049652597,10.41,104.89,104.84,50.33830214]
[1770049652995,10.41,104.89,104.85,50.33750214]
[1770049653195,10.41,104.89,104.85,41.74750214]
[1770049654299,10.41,104.89,104.85,50.33760214]
[1770049655298,10.41,104.89,104.85,41.74750214]
[1770049658396,8.5843,104.93,104.85,50.33690214]
[1770049658698,2.90898447,104.92,104.86,36.57175021]
[1770049659094,2.90898447,104.92,104.86,45.16025021]
[1770049659294,2.90898447,104.91,104.86,45.16025021]
[1770049659500,2.90898447,104.9,104.85,36.57265275]
[1770049661394,11.49598447,104.89,104.82,73.45708042]
[1770049661600,133.5448,104.92,104.81,23.472137]
[1770049661601,2.90898447,104.86,104.81,36.35528042]
[1770049661800,133.5489,104.91,104.81,36.35528042]
[1770049661993,2.90898447,104.87,104.81,36.35528042]
[1770049663202,2.90898447,104.86,104.81,44.94858042]
[1770049664904,2.90898447,104.86,104.81,36.35528042]
[1770049665402,8.5877,104.88,104.81,36.35528042]
[1770049665403,2.90898447,104.85,104.81,36.35528042]
[1770049666606,2.90898447,104.83,104.77,380.32]
[1770049666802,2.90898447,104.84,104.76,1.65943446]
[1770049666998,2.90898447,104.84,104.76,515.71693446]
[1770049667209,2.90898447,104.84,104.76,390.57613446]
[1770049667797,11.49988447,104.84,104.76,390.57613446]
[1770049668498,11.49988447,104.84,104.77,16.70325314]
[1770049669204,2.90898447,104.82,104.77,16.70325314]
[1770049669805,11.50168447,104.82,104.77,16.70325314]
[1770049670804,2.90898447,104.84,104.78,16.70757041]
[1770049671309,11.49898447,104.86,104.8,16.70757041]
[1770049671505,2.90898447,104.86,104.8,16.70757041]
[1770049673309,8.5902,104.85,104.8,16.70757041]
[1770049676112,2.90898447,104.84,104.8,16.70757041]
[1770049678316,11.49998447,104.84,104.8,16.70757041]
[1770049680820,8.5917,104.83,104.8,16.70757041]
[1770049681922,8.591,104.84,104.8,16.70757041]
[1770049683722,8.591,104.84,104.8,19.61655488]
[1770049684117,8.591,104.84,104.8,16.70757041]
[1770049684515,8.5918,104.83,104.8,16.70757041]
[1770049684720,2.90898447,104.85,104.8,16.70757041]
[1770049684920,2.90898447,104.84,104.79,339.66]
[1770049685119,8.5926,104.82,104.78,16.74248855]
[1770049685524,2.90898447,104.84,104.78,16.74248855]
[1770049686522,8.5923,104.83,104.78,16.74248855]
[1770049687921,11.50128447,104.83,104.78,16.74248855]
[1770049688226,8.5923,104.83,104.78,16.74248855]
[1770049688425,11.50128447,104.83,104.78,16.74248855]
[1770049689521,8.5926,104.82,104.78,16.74248855]
[1770049692928,133.6133,104.86,104.78,16.74248855]
[1770049692929,2.90898447,104.86,104.78,16.74248855]
[1770049693133,136.51048447,104.87,104.8,16.7905141]
[1770049693334,8.5908,104.85,104.8,16.7905141]
[1770049693635,136.51048447,104.87,104.8,16.7905141]
[1770049694133,2.90898447,104.86,104.8,16.7905141]
[1770049694334,8.5907,104.85,104.8,16.7905141]
[1770049695628,11.49828447,104.86,104.8,16.7905141]
[1770049695835,8.5893,104.86,104.81,16.80718036]
[1770049696336,8.5885,104.87,104.81,16.80718036]
[1770049696531,133.5729,104.89,104.81,16.80718036]
[1770049696738,2.90898447,104.86,104.81,16.80718036]
[1770049697332,2.90898447,104.87,104.81,16.80718036]
[1770049697733,2.90898447,104.88,104.81,16.80718036]
[1770049698938,136.48188447,104.89,104.82,19.66304813]
[1770049699742,8.5884,104.87,104.82,19.66304813]
[1770049699939,133.5613,104.9,104.84,2.90898447]
[1770049700140,136.46588447,104.91,104.84,2.90898447]
[1770049700344,136.43688447,104.93,104.86,19.64301302]
[1770049700639,138.82793847,104.92,104.86,16.73402855]
[1770049700844,2.38366774,104.91,104.86,16.73402855]
[1770049701146,136.44458447,104.92,104.86,16.73402855]
[1770049701344,2.90898447,104.92,104.86,16.73402855]
[1770049701544,136.43688447,104.93,104.87,19.65836561]
[1770049701740,136.43688447,104.93,104.87,16.74938114]
[1770049701945,136.45498447,104.91,104.83,16.74938114]
[1770049702244,133.5345,104.92,104.86,2.90898447]
[1770049702745,8.5859,104.9,104.86,2.90898447]
[1770049702941,136.44348447,104.92,104.85,19.65836561]
[1770049703139,2.38368885,104.91,104.85,19.65836561]
[1770049703335,136.44348447,104.92,104.85,19.65836561]
[1770049703540,2.38353145,104.91,104.85,19.65836561]
[1770049703747,136.44348447,104.92,104.85,19.65836561]
[1770049703943,133.5279,104.93,104.86,19.75733929]
[1770049704341,136.43688447,104.93,104.86,19.75733929]
[1770049705247,8.5851,104.91,104.86,19.75733929]
[1770049705735,8.5851,104.91,104.87,19.77070179]
[1770049706141,8.5859,104.9,104.87,19.77070179]
[1770049707847,8.5868,104.89,104.87,1.732e-05]
[1770049709144,8.5868,104.89,104.87,2.90900179]
[1770049709450,8.5868,104.89,104.87,1.732e-05]
[1770049709646,8.5856,104.91,104.88,2.90898447]
[1770049709852,133.5182,104.94,104.89,11.35656817]
[1770049710150,133.4918,104.96,104.9,7.06376817]
[1770049710549,133.5212,104.93,104.87,4.1547837]
[1770049710845,136.89429858,104.93,104.88,8.37e-05]
[1770049711050,136.91988228,104.91,104.82,76.08]
[1770049711252,136.91988228,104.91,104.85,2.90898447]
[1770049711551,133.5319,104.92,104.86,2.90898447]
[1770049711945,8.5865,104.9,104.86,2.90898447]
[1770049712452,8.5865,104.9,104.86,2.90816053]
[1770049713047,8.5869,104.89,104.86,6.34242685]
[1770049713350,8.5869,104.89,104.86,6.632e-05]
[1770049713749,14.87075649,104.92,104.86,6.632e-05]
[1770049714942,11.96259596,104.92,104.86,2.90822685]
[1770049717548,11.96259596,104.92,104.87,6.34242685]
[1770049717754,11.96259596,104.92,104.87,3.43426632]
[1770049720059,8.585,104.91,104.87,3.43426632]
[1770049720255,8.585,104.91,104.85,6.34242685]
[1770049720856,15.25713651,104.91,104.85,3.43426632]
[1770049721450,8.5842,104.92,104.85,6.34242685]
[1770049721757,12.34817598,104.92,104.87,3.43426632]
[1770049722557,8.5833,104.93,104.87,6.34242685]
[1770049722761,3.76397598,104.94,104.88,6.34242685]
[1770049723162,8.5816,104.95,104.9,2.90816053]
[1770049723559,12.34557598,104.95,104.9,2.90816053]
[1770049723862,8.5808,104.96,104.91,6.34242685]
[1770049725254,12.34567598,104.95,104.9,2.90816053]
[1770049725456,12.34567598,104.95,104.9,6.34242685]
[1770049726658,15.25383651,104.95,104.9,3.43426632]
[1770049727060,2.90816053,104.93,104.87,3.43426632]
[1770049727460,6.67213651,104.92,104.85,3.43426632]
[1770049727661,2.90816053,104.91,104.85,3.43426632]
[1770049727958,2.90816053,104.9,104.85,3.43426632]
[1770049728167,2.90816053,104.89,104.83,383.65426632]
[1770049728763,2.90816053,104.89,104.84,3.61865741]
[1770049730469,3.50437969,104.93,104.84,3.61865741]
[1770049730671,2.90816053,104.92,104.85,3.47461919]
[1770049731270,14.99664022,104.93,104.86,14.97187972]
[1770049731865,3.50437969,104.93,104.86,6.38277972]
[1770049732065,3.50437969,104.95,104.89,6.38277972]
[1770049732266,6.41254022,104.97,104.9,6.38277972]
[1770049732967,14.99424022,104.96,104.9,6.38277972]
[1770049733162,14.99424022,104.96,104.9,3.47461919]
[1770049733362,12.08607969,104.96,104.9,3.47461919]
[1770049734070,2.90816053,104.95,104.9,3.47461919]
[1770049734969,2.90816053,104.94,104.88,270.41461919]
[1770049735769,11.49006053,104.94,104.88,270.41461919]
[1770049736165,2.90816053,104.94,104.88,279.00151919]
[1770049738373,14.99404022,104.95,104.88,279.00151919]
[1770049738580,11.49096053,104.94,104.88,270.41461919]
[1770049739880,2.90816053,104.95,104.89,3.47461919]
[1770049740576,6.41254022,104.95,104.89,3.47461919]
[1770049741381,14.99464022,104.95,104.89,3.47461919]
[1770049744685,8.5828,104.94,104.89,3.47461919]
[1770049746785,8.5828,104.94,104.85,3.47461919]
[1770049746786,6.41254022,104.92,104.85,3.47461919]
[1770049746996,133.5043,104.94,104.85,3.47461919]
[1770049746997,6.41254022,104.91,104.85,3.47461919]
[1770049748088,2.90816053,104.9,104.85,3.47461919]
[1770049748295,14.99734022,104.91,104.85,12.06401919]
[1770049748593,3.50437969,104.91,104.85,12.06401919]
[1770049748789,6.41254022,104.93,104.87,3.47461919]
[1770049748985,11.49276053,104.92,104.87,3.47461919]
[1770049749189,14.99714022,104.92,104.87,3.47461919]
[1770049749384,14.99714022,104.92,104.85,2.90816053]
[1770049749385,6.41254022,104.91,104.85,3.47461919]
[1770049749593,14.99774022,104.91,104.85,12.06461919]
[1770049750192,133.512,104.94,104.87,3.47461919]
[1770049750193,11.49146053,104.93,104.87,3.47461919]
[1770049750493,2.90816053,104.93,104.87,3.47461919]
[1770049751394,11.49186053,104.93,104.87,12.06291919]
[1770049751688,133.4858,104.96,104.88,3.47461919]
[1770049751689,3.50437969,104.96,104.88,3.47461919]
[1770049751894,2.90816053,104.97,104.9,12.06011919]
[1770049752095,6.41254022,104.98,104.91,3.47461919]
[1770049752294,6.41254022,104.98,104.91,6.38277972]
[1770049752593,14.99114022,104.98,104.91,14.96697972]
[1770049752989,2.90816053,104.99,104.93,3.47461919]
[1770049753188,6.41254022,105.0,104.93,6.38277972]
[1770049753391,3.50437969,105.0,104.94,6.38277972]
[1770049753897,6.41254022,105.02,104.95,3.47461919]
[1770049754592,12.08067969,105.02,104.95,3.47461919]
[1770049754895,3.50437969,105.01,104.95,3.47461919]
[1770049755893,12.08157969,105.01,104.95,3.47461919]
[1770049756793,3.50437969,105.01,104.95,3.47461919]
[1770049756992,136.86937969,105.05,104.95,3.47461919]
[1770049757196,3.50437969,105.04,104.95,3.47461919]
[1770049757398,3.50437969,105.04,104.96,3.47461919]
[1770049757600,3.50437969,105.04,104.97,3.47461919]
[1770049758097,3.50437969,105.03,104.97,3.47461919]
[1770049758794,3.50437969,105.03,104.95,12.05551919]
[1770049759002,3.50437969,105.03,104.95,392.11551919]
[1770049759398,12.07957969,105.03,104.95,392.11551919]
[1770049760196,12.07957969,105.03,104.96,3.59110458]
[1770049760400,3.50437969,105.03,104.96,12.17170458]
[1770049760698,3.50437969,105.03,104.96,3.59110458]
[1770049761105,3.50437969,105.03,104.96,12.17210458]
[1770049761106,12.07967969,105.03,104.96,12.17210458]
[1770049761803,12.28938577,105.02,104.96,3.59110458]
[1770049762210,3.71318577,105.02,104.96,3.59110458]
[1770049763305,3.71318577,105.01,104.96,3.59110458]
[1770049764509,12.29018577,105.01,104.96,3.59110458]
[1770049766213,3.71318577,105.0,104.94,8.5827]
[1770049766410,7.25738932,105.02,104.94,8.5827]
[1770049766411,3.71318577,105.02,104.95,3.59110458]
[1770049767012,3.71318577,105.02,104.95,12.17280458]
[1770049767313,10.97057509,105.04,104.96,3.59110458]
[1770049767509,3.71318577,105.04,104.98,3.59110458]
[1770049767809,3.71318577,105.04,104.98,383.53110458]
[1770049768210,3.71318577,105.04,104.96,3.59110458]
[1770049768805,7.25738932,105.05,104.96,3.59110458]
[1770049768806,12.28888577,105.03,104.96,3.59110458]
[1770049769006,3.71318577,105.02,104.96,3.59110458]
[1770049769518,3.71318577,105.01,104.94,392.09310458]
[1770049769717,3.71318577,105.01,104.94,383.51110458]
[1770049770412,12.29018577,105.01,104.94,383.51110458]
[1770049770618,10.97057509,105.03,104.95,3.59110458]
[1770049770913,3.71318577,105.03,104.95,3.59110458]
[1770049772319,12.28848577,105.03,104.96,3.59110458]
[1770049773318,3.71318577,105.03,104.97,3.59110458]
[1770049774418,15.19069565,105.03,104.97,3.59110458]
[1770049775019,2.90230988,105.02,104.97,3.59110458]
[1770049776122,11.47850988,105.02,104.97,3.59110458]
[1770049776320,2.90230988,105.01,104.96,3.59110458]
[1770049776917,11.47910988,105.01,104.96,3.59110458]
[1770049777319,3.71318577,105.02,104.96,3.59110458]
[1770049777520,6.61549565,105.04,104.97,3.59110458]
[1770049778317,15.19039565,105.04,104.97,12.17090458]
[1770049778722,6.61549565,105.04,104.98,3.59110458]
[1770049778922,6.61549565,105.04,104.98,12.17010458]
[1770049779122,6.61549565,105.04,104.98,3.59110458]
[1770049779825,15.18989565,105.04,104.98,3.59110458]
[1770049780823,2.90230988,105.03,104.98,3.59110458]
[1770049782225,11.47730988,105.03,104.98,3.59110458]
[1770049782423,15.19049565,105.03,104.96,12.17170458]
[1770049782622,6.61549565,105.03,104.96,12.17170458]
[1770049783226,15.19069565,105.03,104.96,12.17170458]
[1770049783922,6.61549565,105.01,104.96,3.59110458]
[1770049784321,15.19219565,105.01,104.96,3.59110458]
[1770049785327,6.61549565,105.01,104.96,3.59110458]
[1770049786225,2.90230988,105.01,104.96,3.59110458]
[1770049786427,2.90230988,105.01,104.96,12.17210458]
[1770049786628,2.90230988,105.01,104.96,3.59110458]
[1770049787025,8.5778,104.99,104.93,3.59110458]
[1770049787222,3.71318577,105.0,104.93,383.43110458]
[1770049788232,12.29108577,105.0,104.94,3.51389829]
[1770049788929,267.2,105.08,104.94,3.51389829]
[1770049789130,27.11323138,105.18,105.06,2.65891411]
[1770049789131,133.2203,105.17,105.06,2.65891411]
[1770049789331,133.1656,105.21,105.11,2.65891411]
[1770049789630,2.90230988,105.21,105.15,2.65235886]
[1770049789829,6.51679561,105.23,105.15,135.88905886]
[1770049790024,3.61448573,105.23,105.15,135.88905886]
[1770049790231,3.61448573,105.23,105.16,2.90230988]
[1770049790432,3.61448573,105.23,105.17,379.86]
[1770049790729,3.61448573,105.23,105.14,133.2498]
[1770049790933,3.61448573,105.2,105.13,379.86]
[1770049791125,3.61448573,105.2,105.13,513.1245]
[1770049791324,3.61448573,105.2,105.13,382.51008426]
[1770049791530,10.84103778,105.23,105.14,135.65077941]
[1770049791732,3.61448573,105.22,105.14,135.65077941]
[1770049792034,3.61448573,105.25,105.18,135.58577941]
[1770049792224,3.61448573,105.25,105.18,515.36577941]
[1770049792631,3.61448573,105.25,105.19,141.7528]
[1770049792832,3.61448573,105.25,105.18,515.36577941]
[1770049793233,3.61448573,105.25,105.18,379.78]
[1770049793732,3.61448573,105.25,105.18,512.9827]
[1770049794036,3.61448573,105.28,105.19,136.04923689]
[1770049794236,3.61448573,105.26,105.18,133.2027]
[1770049794437,3.61448573,105.26,105.19,379.58]
[1770049795028,3.61448573,105.24,105.19,379.58]
[1770049796238,3.61448573,105.26,105.18,515.72922541]
[1770049796538,3.61448573,105.28,105.2,136.73435896]
[1770049797337,3.61448573,105.28,105.2,145.29565896]
[1770049798132,3.61448573,105.28,105.21,3.74200115]
[1770049798435,3.61448573,105.28,105.21,524.86740115]
[1770049798737,3.61448573,105.28,105.21,383.14200115]
[1770049799138,19.39383778,105.31,105.22,3.74200115]
[1770049799437,3.61448573,105.31,105.22,3.74200115]
[1770049800035,3.61448573,105.31,105.22,12.44665794]
[1770049800036,3.61448573,105.3,105.22,12.44665794]
[1770049800436,3.61448573,105.29,105.22,8.70465679]
[1770049800635,3.61448573,105.29,105.21,388.10465679]
[1770049800843,3.61448573,105.27,105.2,8.70465679]
[1770049801034,12.17078573,105.27,105.2,8.70465679]
[1770049801240,3.61448573,105.27,105.19,383.06200115]
[1770049801541,3.61448573,105.26,105.19,383.06200115]
[1770049801743,3.61448573,105.24,105.19,379.32]
[1770049801944,3.61448573,105.24,105.17,383.02200115]
[1770049802837,3.61448573,105.24,105.17,3.74200115]
[1770049803739,3.61448573,105.27,105.17,3.74200115]
[1770049803944,3.61448573,105.28,105.19,3.74200115]
[1770049804242,3.61448573,105.27,105.18,255.56200115]
[1770049804436,3.61448573,105.27,105.18,3.74200115]
[1770049804836,3.61448573,105.25,105.15,3.74200115]
[1770049805040,12.17218573,105.25,105.16,320.06]
[1770049805238,3.61448573,105.24,105.16,323.80200115]
[1770049805740,3.61448573,105.24,105.17,3.74200115]
[1770049805939,19.39733778,105.27,105.17,3.74200115]
[1770049806141,3.61448573,105.26,105.17,3.74200115]
[1770049807546,12.17128573,105.26,105.17,3.74200115]
[1770049807745,10.84103778,105.25,105.17,3.74200115]
[1770049808450,3.61448573,105.25,105.17,3.74200115]
[1770049808946,12.17088573,105.27,105.17,3.74200115]
[1770049809345,3.61448573,105.27,105.19,3.74200115]
[1770049809541,3.61448573,105.3,105.22,3.74200115]
[1770049810241,3.61448573,105.29,105.2,379.14]
[1770049810445,3.61448573,105.29,105.21,382.86200115]
[1770049810646,3.61448573,105.28,105.21,382.86200115]
[1770049810845,7.22655205,105.29,105.18,12.30440115]
[1770049810846,3.61448573,105.26,105.18,12.30440115]
[1770049811044,3.61448573,105.26,105.18,3.74200115]
[1770049811943,3.61448573,105.26,105.19,3.74200115]
[1770049812543,3.61448573,105.29,105.2,136.92140115]
[1770049812749,3.61448573,105.29,105.21,3.74200115]
[1770049812947,10.84103778,105.28,105.21,3.74200115]
[1770049813144,3.61448573,105.27,105.2,327.66]
[1770049814150,3.61448573,105.27,105.17,8.70465679]
[1770049814151,10.84103778,105.24,105.17,8.70465679]
[1770049814346,10.84103778,105.24,105.16,12.44665794]
[1770049814546,10.84103778,105.24,105.16,3.74200115]
[1770049814948,3.61448573,105.24,105.17,3.74200115]
[1770049815445,3.61448573,105.24,105.17,12.30580115]
[1770049817454,12.17278573,105.24,105.17,12.30580115]
[1770049818252,12.17278573,105.24,105.17,21.01045794]
[1770049818854,3.61448573,105.24,105.17,21.01045794]
[1770049819353,3.61448573,105.24,105.18,17.26765679]
[1770049820151,3.61448573,105.24,105.18,17.20232356]
[1770049820852,27.35878317,105.26,105.18,27.75459049]
[1770049821046,7.22655205,105.26,105.2,10.55226693]
[1770049821252,18.80148317,105.28,105.2,10.55226693]
[1770049821552,11.57493112,105.27,105.2,10.55226693]
[1770049822456,20.13073112,105.27,105.2,19.11376693]
[1770049822657,11.57493112,105.25,105.18,8.63932356]
[1770049822851,11.57493112,105.25,105.18,19.19159049]
[1770049824158,11.57493112,105.25,105.19,8.63932356]
[1770049824350,11.57493112,105.25,105.19,17.20162356]
[1770049824553,11.57493112,105.25,105.18,19.19159049]
[1770049824756,11.57493112,105.23,105.17,8.63932356]
[1770049825052,11.57493112,105.23,105.16,8.63932356]
[1770049825254,18.80148317,105.22,105.16,8.63932356]
[1770049825454,18.80148317,105.22,105.15,19.19159049]
[1770049825758,18.80148317,105.22,105.16,8.63932356]
[1770049825950,133.1308,105.24,105.17,19.11616693]
[1770049825951,20.13373112,105.24,105.17,19.11616693]
[1770049826156,11.57493112,105.24,105.17,10.55226693]
[1770049826658,20.13333112,105.24,105.17,19.11546693]
[1770049826859,20.13333112,105.24,105.17,10.55226693]
[1770049828256,7.22655205,105.25,105.16,133.2206]
[1770049828462,18.80148317,105.27,105.19,10.55226693]
[1770049828659,11.57493112,105.26,105.19,10.55226693]
[1770049828858,11.57493112,105.26,105.17,389.61226693]
[1770049829758,11.57493112,105.26,105.18,10.55226693]
[1770049830061,8.5576,105.25,105.18,10.55226693]
[1770049831462,8.5576,105.25,105.19,8.5622]
[1770049831660,20.13253112,105.25,105.19,8.5622]
[1770049834063,11.57493112,105.25,105.19,8.5622]
[1770049834960,15.78227655,105.27,105.2,19.11356693]
[1770049835265,11.57493112,105.26,105.2,19.11356693]
[1770049835459,20.13003112,105.28,105.21,10.55226693]
[1770049835860,20.13003112,105.28,105.21,143.71386693]
[1770049835861,11.57493112,105.28,105.21,143.71386693]
[1770049836170,11.57493112,105.3,105.22,28.18117726]
[1770049836365,11.57493112,105.3,105.23,161.32137726]
[1770049836663,11.57493112,105.3,105.24,17.62891033]
[1770049837064,11.57493112,105.3,105.23,28.18117726]
[1770049837466,11.57493112,105.32,105.25,10.55226693]
[1770049837662,11.57493112,105.32,105.24,17.62891033]
[1770049837866,11.57493112,105.31,105.24,17.62891033]
[1770049839363,11.57493112,105.29,105.23,8.559]
[1770049839765,11.57493112,105.29,105.22,8.5599]
[1770049839961,11.57493112,105.32,105.23,10.55226693]
[1770049840164,11.57493112,105.32,105.23,28.18117726]
[1770049840468,20.12833112,105.3,105.23,10.55226693]
[1770049840667,11.57493112,105.29,105.23,10.55226693]
[1770049841059,11.57493112,105.29,105.24,8.5582]
[1770049842672,11.57493112,105.29,105.23,10.55226693]
[1770049842971,11.57493112,105.28,105.21,379.02]
[1770049843168,11.57493112,105.28,105.21,387.58]
[1770049843368,20.13013112,105.28,105.21,387.58]
[1770049843561,20.13013112,105.28,105.21,8.56]
[1770049843764,20.13013112,105.28,105.21,19.11226693]
[1770049844367,11.57493112,105.28,105.22,10.55226693]
[1770049844564,18.80130767,105.31,105.22,10.55226693]
[1770049844763,11.57493112,105.3,105.22,10.55226693]
[1770049845370,11.57493112,105.3,105.22,28.18117726]
[1770049845575,11.57493112,105.28,105.2,28.18117726]
[1770049845779,11.57493112,105.28,105.2,10.55226693]
[1770049845981,11.57493112,105.28,105.2,28.18117726]
[1770049846178,11.57493112,105.28,105.2,161.36007726]
[1770049846775,20.12833112,105.3,105.23,19.11126693]
[1770049846974,18.80130767,105.32,105.24,10.55226693]
[1770049847173,11.57493112,105.31,105.24,10.55226693]
[1770049847380,11.57493112,105.3,105.24,19.10976693]
[1770049849977,11.57493112,105.3,105.24,8.5575]
[1770049850182,17.80893286,105.27,105.2,17.62891033]